bitfinex-derivatives/quotes_SOLF0:USTF0_20250509
["timestamp","ask_amount","ask_price","bid_price","bid_amount"]
[1746757772492,6.1574,162.43,162.42,1.0]
[1746757777499,6.1571,162.44,162.42,1.0]
[1746757778798,6.1574,162.43,162.42,1.0]
[1746757779699,6.1571,162.44,162.42,1.0]
[1746757780201,6.1571,162.44,162.42,2.0]
[1746757780400,6.1574,162.43,162.42,2.0]
[1746757785210,6.1574,162.44,162.42,2.0]
[1746757785905,6.1566,162.46,162.42,8.1575]
[1746757786405,29.42,162.47,162.42,2.0]
[1746757787108,6.157,162.44,162.42,2.0]
[1746757791212,6.1567,162.45,162.42,2.0]
[1746757792714,6.1567,162.45,162.42,8.1577]
[1746757793514,6.1567,162.45,162.42,2.0]
[1746757794111,6.1563,162.46,162.42,2.0]
[1746757794717,6.1567,162.45,162.42,8.1576]
[1746757795010,6.1567,162.45,162.42,2.0]
[1746757795810,6.1567,162.45,162.42,5.9307585]
[1746757796617,6.1573,162.44,162.42,5.9307585]
[1746757798110,6.1574,162.43,162.42,2.0]
[1746757801514,6.1574,162.43,162.34,2.0]
[1746757801515,33.3307585,162.43,162.34,2.0]
[1746757801717,33.3307585,162.43,162.35,35.4006]
[1746757801909,33.3307585,162.43,162.35,37.2950585]
[1746757802909,6.1592,162.39,162.35,37.2950585]
[1746757803113,33.3307585,162.43,162.35,37.2950585]
[1746757803318,6.1592,162.39,162.35,37.2950585]
[1746757803723,6.1592,162.39,162.35,33.3643]
[1746757803917,6.1586,162.4,162.35,39.5246]
[1746757804118,29.4,162.43,162.35,39.5246]
[1746757804622,6.1588,162.4,162.35,39.5246]
[1746757805724,6.1588,162.4,162.36,6.1597]
[1746757806821,29.4,162.43,162.35,33.3643]
[1746757807026,29.4,162.44,162.35,39.51118727]
[1746757807622,6.1582,162.41,162.37,6.1594]
[1746757808625,29.4,162.44,162.35,39.51118727]
[1746757808819,356.77796,162.49,162.38,6.14688727]
[1746757809023,29.4,162.47,162.39,29.4]
[1746757809219,29.4,162.47,162.39,31.3603]
[1746757809826,6.1569,162.45,162.41,6.1579]
[1746757810026,29.4,162.51,162.41,6.14688727]
[1746757810325,29.4,162.51,162.42,4.0942]
[1746757810526,6.154,162.52,162.48,6.1554]
[1746757810722,6.154,162.52,162.45,1.975]
[1746757811428,6.154,162.52,162.47,6.1555]
[1746757811724,6.154,162.52,162.45,1.975]
[1746757812326,6.154,162.52,162.46,6.156]
[1746757813025,29.4,162.54,162.45,1.975]
[1746757813422,531.98,162.55,162.47,6.14688727]
[1746757813729,6.1535,162.54,162.48,31.3166]
[1746757814124,531.98,162.55,162.48,31.3166]
[1746757814323,6.1539,162.53,162.48,31.3166]
[1746757814727,531.98,162.55,162.48,37.4718]
[1746757814932,6.1531,162.55,162.49,2.1059]
[1746757815330,47.11500314,162.58,162.49,8.2608]
[1746757815628,6.1536,162.54,162.49,8.2608]
[1746757816329,6.1529,162.55,162.5,12.30158727]
[1746757816630,47.11500314,162.58,162.5,6.14688727]
[1746757816820,6.1535,162.54,162.5,6.14688727]
[1746757817130,29.4,162.58,162.5,6.14688727]
[1746757817331,29.4,162.58,162.49,2.1059]
[1746757817629,6.1543,162.52,162.49,2.1059]
[1746757818230,6.1546,162.51,162.49,2.1059]
[1746757818430,29.4,162.58,162.49,2.1059]
[1746757818631,35.54688727,162.58,162.49,2.1059]
[1746757819332,6.1547,162.5,162.49,2.1059]
[1746757820337,6.1551,162.49,162.48,1.9366]
[1746757820529,29.4,162.54,162.47,29.36]
[1746757820731,29.4,162.54,162.45,31.375]
[1746757820926,6.1562,162.46,162.45,29.36]
[1746757821931,6.1571,162.44,162.42,33.4768]
[1746757822131,29.8741,162.54,162.43,29.36]
[1746757822338,29.4,162.53,162.43,29.36]
[1746757822737,6.1573,162.44,162.43,29.36]
[1746757823535,29.4,162.5,162.42,10.22368727]
[1746757823835,29.4,162.5,162.42,2.0728]
[1746757825239,6.1571,162.44,162.42,2.0728]
[1746757827836,6.1574,162.43,162.42,2.0728]
[1746757828042,29.4,162.5,162.42,2.0728]
[1746757829445,6.1568,162.45,162.42,2.0728]
[1746757829647,29.4,162.5,162.42,2.0728]
[1746757830838,6.1569,162.45,162.42,2.0728]
[1746757831234,29.4,162.5,162.42,2.0728]
[1746757832247,6.1569,162.45,162.42,2.0728]
[1746757832547,29.4,162.5,162.42,2.0728]
[1746757832940,6.1567,162.45,162.42,2.0728]
[1746757834247,0.4741,162.54,162.42,8.2302]
[1746757834441,58.72,162.53,162.42,2.0728]
[1746757835347,6.1566,162.46,162.42,8.2303]
[1746757835545,58.7,162.53,162.42,8.21968727]
[1746757835741,58.7,162.53,162.43,2.0434]
[1746757835941,538.02688727,162.55,162.44,29.34]
[1746757836143,29.36,162.54,162.45,6.14688727]
[1746757836646,6.1547,162.5,162.45,6.14688727]
[1746757836840,6.1547,162.5,162.45,35.50688727]
[1746757837041,6.14688727,162.61,162.45,35.50688727]
[1746757837242,29.36,162.57,162.49,6.1548]
[1746757838244,6.1538,162.53,162.49,6.1548]
[1746757839145,6.1533,162.54,162.49,6.1548]
[1746757839341,29.36,162.57,162.49,6.1548]
[1746757839547,6.1536,162.54,162.49,6.1548]
[1746757839745,29.36,162.57,162.49,6.1548]
[1746757840649,6.1536,162.54,162.49,6.1548]
[1746757840850,29.36,162.57,162.48,35.48688727]
[1746757841350,6.1539,162.53,162.48,35.48688727]
[1746757841545,29.36,162.57,162.48,35.48688727]
[1746757841750,29.36,162.57,162.45,35.48688727]
[1746757841948,29.5237,162.57,162.46,29.34]
[1746757842149,29.5237,162.57,162.45,29.34]
[1746757842350,29.5237,162.57,162.45,58.68]
[1746757842554,29.5237,162.57,162.45,29.34]
[1746757842555,0.3087,162.56,162.45,29.34]
[1746757843051,6.1555,162.49,162.45,29.34]
[1746757843252,29.34,162.52,162.49,1.0]
[1746757843551,6.1547,162.5,162.49,1.0]
[1746757843853,29.34,162.54,162.49,1.0]
[1746757844148,6.1542,162.52,162.49,1.0]
[1746757845251,29.34,162.54,162.49,1.0]
[1746757845650,6.1547,162.51,162.49,1.0]
[1746757845857,29.34,162.54,162.49,1.0]
[1746757846150,6.1546,162.51,162.49,1.0]
[1746757846352,29.34,162.54,162.49,1.0]
[1746757846739,6.1547,162.5,162.49,1.0]
[1746757850950,29.34,162.54,162.43,2.0434]
[1746757851246,29.34,162.54,162.43,31.3634]
[1746757851456,6.1569,162.45,162.43,2.0434]
[1746757851651,29.34,162.49,162.42,2.0728]
[1746757852443,29.34,162.49,162.41,29.32]
[1746757853247,29.34,162.49,162.37,7.21823338]
[1746757853248,35.48688727,162.49,162.37,1.07134611]
[1746757853447,35.48688727,162.49,162.38,29.32]
[1746757853752,35.48688727,162.49,162.36,33.4259]
[1746757854247,0.3082,162.48,162.36,62.7459]
[1746757854446,29.32,162.47,162.36,62.7459]
[1746757855153,6.1579,162.42,162.38,6.159]
[1746757855355,29.36,162.44,162.36,62.7459]
[1746757855550,29.36,162.44,162.32,531.78]
[1746757855757,29.36,162.44,162.35,6.1602]
[1746757857051,6.158,162.42,162.35,6.1602]
[1746757857256,29.32,162.43,162.35,6.1602]
[1746757857451,29.32,162.43,162.34,2.0]
[1746757857646,6.1603,162.36,162.34,2.0]
[1746757858159,6.1592,162.39,162.34,2.0]
[1746757859062,6.1586,162.4,162.35,6.1601]
[1746757859959,6.1589,162.39,162.35,6.1601]
[1746757860452,6.1586,162.4,162.36,6.1599]
[1746757860656,29.3,162.42,162.35,6.14688727]
[1746757861358,6.1584,162.41,162.37,6.1594]
[1746757861554,6.1584,162.41,162.35,6.14688727]
[1746757861955,6.1584,162.41,162.36,6.1599]
[1746757862157,6.1586,162.4,162.36,6.1599]
[1746757864454,6.1589,162.39,162.35,12.30718727]
[1746757864662,29.3,162.42,162.35,6.14688727]
[1746757865356,356.94396,162.47,162.35,6.14688727]
[1746757865655,6.14688727,162.49,162.38,6.14688727]
[1746757865856,531.88,162.48,162.38,35.44688727]
[1746757866060,531.88,162.48,162.41,6.14688727]
[1746757866257,531.88,162.48,162.42,29.3]
[1746757866563,6.1563,162.46,162.42,35.4577]
[1746757866951,29.32,162.49,162.42,29.3]
[1746757867355,532.02,162.57,162.44,6.14688727]
[1746757867556,29.3,162.54,162.44,6.14688727]
[1746757867859,6.155,162.5,162.46,6.1559]
[1746757868361,6.1544,162.51,162.46,6.1559]
[1746757868657,6.1544,162.51,162.47,6.1558]
[1746757868849,29.32,162.53,162.47,6.1558]
[1746757869051,532.02,162.57,162.47,6.1558]
[1746757869249,6.1543,162.52,162.47,6.1558]
[1746757869451,29.32,162.53,162.46,29.3]
[1746757869654,6.1529,162.55,162.47,33.4328]
[1746757869851,6.1529,162.55,162.5,6.1544]
[1746757870058,6.1529,162.55,162.5,35.4544]
[1746757874766,6.1532,162.54,162.5,35.4544]
[1746757875064,29.32,162.56,162.51,6.1543]
[1746757875569,6.1531,162.55,162.51,6.1543]
[1746757876467,6.1533,162.54,162.5,29.3]
[1746757876667,29.32,162.56,162.49,29.28]
[1746757876966,6.1535,162.54,162.49,35.4348]
[1746757877466,6.1532,162.54,162.49,35.4348]
[1746757877668,29.32,162.56,162.49,35.4348]
[1746757877968,29.32,162.56,162.5,6.1546]
[1746757878169,6.1532,162.54,162.5,6.1546]
[1746757878671,6.1529,162.55,162.5,6.1546]
[1746757878871,6.1529,162.55,162.51,6.1542]
[1746757879071,29.32,162.56,162.49,29.28]
[1746757879868,6.1537,162.53,162.49,29.28]
[1746757880372,6.1537,162.53,162.47,35.3632]
[1746757880666,6.1537,162.53,162.48,29.26]
[1746757880974,6.1537,162.53,162.49,6.1551]
[1746757881173,6.1537,162.53,162.48,29.26]
[1746757882471,6.1533,162.54,162.48,29.26]
[1746757882674,29.32,162.56,162.48,35.4155]
[1746757883269,6.153,162.55,162.5,6.1547]
[1746757883473,29.3,162.59,162.48,29.26]
[1746757883673,29.3,162.59,162.48,39.08007129]
[1746757883869,6.1527,162.56,162.51,6.1543]
[1746757884071,6.1527,162.56,162.52,29.26]
[1746757885677,6.1527,162.56,162.52,35.4139]
[1746757885880,6.1527,162.56,162.53,2.0614]
[1746757886073,6.1529,162.55,162.53,2.0614]
[1746757887772,6.1532,162.54,162.53,2.0614]
[1746757888276,29.24,162.55,162.48,60.5414]
[1746757888477,6.1546,162.51,162.48,60.5414]
[1746757888678,29.24,162.55,162.48,2.0614]
[1746757889080,6.155,162.5,162.48,2.0614]
[1746757889484,29.24,162.55,162.48,2.0614]
[1746757889785,58.48,162.55,162.46,29.24]
[1746757890087,58.48,162.55,162.43,35.3972]
[1746757890986,58.48,162.55,162.43,29.24]
[1746757891186,58.48,162.54,162.43,29.24]
[1746757891587,58.48,162.54,162.44,6.1569]
[1746757892295,6.1554,162.49,162.45,6.1565]
[1746757892784,6.1555,162.48,162.44,6.157]
[1746757893389,6.1555,162.48,162.45,6.1566]
[1746757893687,6.1555,162.48,162.43,29.24]
[1746757894795,58.48,162.54,162.43,29.24]
[1746757895085,9.82364331,162.57,162.43,29.24]
[1746757895296,0.31,162.61,162.43,39.06364331]
[1746757895589,6.1544,162.51,162.47,6.1557]
[1746757895789,6.1544,162.51,162.48,29.24]
[1746757896391,29.24,162.55,162.48,29.24]
[1746757896796,29.24,162.55,162.5,6.1547]
[1746757897089,29.24,162.57,162.5,6.1547]
[1746757898487,6.1529,162.55,162.49,3.9703]
[1746757898691,6.1529,162.55,162.49,5.9487]
[1746757899190,6.1524,162.57,162.49,5.9487]
[1746757899691,6.1524,162.57,162.52,6.1537]
[1746757899892,6.1525,162.56,162.52,35.3737]
[1746757900095,29.24,162.58,162.52,29.22]
[1746757900284,0.164,162.62,162.53,6.1535]
[1746757900592,29.24,162.61,162.52,29.22]
[1746757901088,6.151,162.6,162.55,6.1528]
[1746757901292,29.24,162.61,162.52,29.22]
[1746757901495,6.1512,162.6,162.56,6.1523]
[1746757901791,29.24,162.61,162.52,29.22]
[1746757901989,29.24,162.62,162.52,29.22]
[1746757902189,6.1516,162.59,162.52,29.22]
[1746757902390,29.24,162.62,162.52,29.22]
[1746757903388,6.1505,162.62,162.57,6.1518]
[1746757903595,561.0,162.65,162.58,29.22]
[1746757905300,561.0,162.65,162.58,35.3717]
[1746757905695,561.0,162.65,162.58,29.22]
[1746757905998,6.1508,162.61,162.58,29.22]
[1746757906190,561.0,162.65,162.58,29.22]
[1746757906497,6.1512,162.6,162.58,29.22]
[1746757906699,561.0,162.65,162.58,29.22]
[1746757906993,531.76,162.65,162.58,29.22]
[1746757907194,561.0,162.65,162.58,29.22]
[1746757907699,6.1501,162.63,162.59,6.1511]
[1746757908399,6.1501,162.63,162.6,6.1509]
[1746757911299,6.1501,162.63,162.59,6.1513]
[1746757911902,6.1495,162.64,162.6,6.1509]
[1746757914300,6.1498,162.63,162.6,6.1509]
[1746757916309,6.1495,162.64,162.6,6.1509]
[1746757918204,6.1498,162.63,162.6,6.1509]
[1746757921098,29.24,162.65,162.56,12.18125614]
[1746757921298,29.24,162.65,162.56,35.2127]
[1746757921502,29.24,162.65,162.53,1.0]
[1746757921503,6.12855614,162.64,162.53,1.0]
[1746757921801,6.12855614,162.64,162.53,30.16]
[1746757922706,6.12855614,162.64,162.53,1.0]
[1746757923005,6.1525,162.56,162.53,30.16]
[1746757923404,29.16,162.59,162.54,6.1531]
[1746757924010,29.16,162.59,162.53,30.16]
[1746757924509,29.16,162.59,162.53,1.0]
[1746757925909,6.1523,162.57,162.53,7.1535]
[1746757926308,29.16,162.59,162.53,7.1535]
[1746757926309,6.1518,162.58,162.54,6.1531]
[1746757927008,29.16,162.6,162.53,30.16]
[1746757927398,6.152,162.58,162.54,6.1531]
[1746757927807,29.16,162.6,162.53,30.16]
[1746757929011,6.1521,162.57,162.53,36.3133]
[1746757929407,29.16,162.6,162.53,36.3133]
[1746757929710,6.1517,162.58,162.54,6.1532]
[1746757930211,6.1521,162.57,162.54,6.1532]
[1746757930811,6.1518,162.58,162.54,6.1532]
[1746757931113,29.16,162.6,162.54,6.12855614]
[1746757931413,6.1514,162.59,162.54,6.12855614]
[1746757931712,6.1514,162.59,162.55,6.1527]
[1746757932207,356.77796,162.66,162.54,6.12855614]
[1746757932406,29.18,162.65,162.56,6.12855614]
[1746757932599,29.18,162.65,162.57,29.16]
[1746757932807,29.18,162.65,162.57,35.312]
[1746757933215,6.151,162.6,162.57,29.16]
[1746757933409,29.18,162.65,162.57,29.16]
[1746757933806,29.18,162.65,162.54,29.14]
[1746757934813,29.18,162.65,162.54,35.2929]
[1746757935416,6.1516,162.59,162.55,6.1528]
[1746757935817,29.18,162.6,162.54,29.14]
[1746757936317,29.18,162.6,162.54,35.2931]
[1746757936812,29.18,162.6,162.53,1.0]
[1746757937010,6.1517,162.58,162.53,1.0]
[1746757938018,6.1517,162.58,162.55,6.1528]
[1746757939418,29.18,162.6,162.55,6.1528]
[1746757939419,6.1514,162.59,162.55,6.1528]
[1746757939921,29.18,162.6,162.55,6.1528]
[1746757940225,6.1518,162.58,162.54,6.1531]
[1746757940412,29.18,162.6,162.53,1.0]
[1746757940719,6.1528,162.56,162.53,1.0]
[1746757940922,29.18,162.6,162.53,1.0]
[1746757941218,6.1527,162.56,162.53,1.0]
[1746757941619,29.14,162.59,162.53,1.0]
[1746757941826,6.1531,162.55,162.53,1.0]
[1746757942626,6.1532,162.54,162.53,1.0]
[1746757943114,6.1529,162.55,162.53,1.0]
[1746757943314,29.18,162.58,162.53,1.0]
[1746757943921,6.1523,162.57,162.53,7.1534]
[1746757944221,6.1523,162.57,162.53,1.0]
[1746757944925,6.1526,162.56,162.53,1.0]
[1746757946622,29.18,162.58,162.53,1.0]
[1746757946927,58.3,162.58,162.53,1.0]
[1746757947927,6.1532,162.54,162.53,1.0]
[1746757949928,6.1529,162.55,162.53,1.0]
[1746757950527,58.3,162.58,162.53,1.0]
[1746757952330,6.1528,162.56,162.53,1.0]
[1746757952633,29.18,162.58,162.53,1.0]
[1746757953431,29.18,162.58,162.54,6.1531]
[1746757954528,29.18,162.58,162.53,30.12]
[1746757954734,29.18,162.58,162.53,36.2735]
[1746757955535,29.18,162.58,162.53,30.12]
[1746757956339,6.1528,162.56,162.53,30.12]
[1746757957140,6.1529,162.55,162.53,1.0]
[1746757957435,29.18,162.58,162.53,1.0]
[1746757958439,6.1532,162.54,162.53,1.0]
[1746757958841,35.2732,162.54,162.53,1.0]
[1746757959141,6.1546,162.51,162.46,37.2084]
[1746757959539,6.1548,162.5,162.46,37.2084]
[1746757960245,6.1552,162.49,162.46,31.0522]
[1746757960439,29.12,162.54,162.46,31.0522]
[1746757960639,6.1546,162.51,162.46,37.2082]
[1746757960835,29.12,162.54,162.46,37.2082]
[1746757961231,29.12,162.54,162.46,31.0522]
[1746757961741,6.1549,162.5,162.46,31.0522]
[1746757962341,6.1549,162.5,162.46,1.9522]
[1746757963442,6.1551,162.49,162.46,1.9522]
[1746757963843,6.1551,162.49,162.46,8.1084]
[1746757964140,6.1548,162.5,162.46,8.1084]
[1746757966544,6.1548,162.5,162.47,6.1558]
[1746757967238,6.1544,162.51,162.48,6.1555]
[1746757967941,6.1544,162.51,162.47,12.28425614]
[1746757968141,6.1548,162.5,162.47,12.28425614]
[1746757969442,6.1544,162.51,162.47,12.28425614]
[1746757970445,6.1547,162.5,162.47,6.12855614]
[1746757970643,29.12,162.54,162.46,1.0]
[1746757970842,29.1,162.53,162.46,1.0]
[1746757972447,6.1548,162.5,162.46,7.1559]
[1746757972948,6.1548,162.5,162.47,6.1558]
[1746757973449,6.1548,162.5,162.46,1.0]
[1746757973650,6.1552,162.49,162.46,7.1562]
[1746757973944,29.1,162.53,162.46,7.1562]
[1746757974148,29.1,162.53,162.46,1.0]
[1746757974649,6.1554,162.49,162.46,1.0]
[1746757975650,6.1554,162.49,162.46,7.1562]
[1746757975851,6.1549,162.5,162.46,7.1562]
[1746757976453,6.1551,162.49,162.46,1.0]
[1746757976949,29.1,162.53,162.46,1.0]
[1746757977652,6.1548,162.5,162.46,1.0]
[1746757978656,6.1548,162.5,162.46,7.1561]
[1746757979450,58.2,162.54,162.46,1.0]
[1746757980052,6.1559,162.47,162.46,1.0]
[1746757980448,6.1569,162.45,162.41,2.0019]
[1746757980648,29.06,162.49,162.41,6.158]
[1746757981054,6.157,162.45,162.41,6.158]
[1746757981255,6.157,162.45,162.42,6.1577]
[1746757981853,6.1562,162.46,162.42,6.1577]
[1746757982054,29.06,162.49,162.41,6.158]
[1746757983554,29.06,162.49,162.42,6.1577]
[1746757984856,6.1559,162.47,162.43,6.1573]
[1746757985154,29.08,162.48,162.4,6.12855614]
[1746757985454,35.2358,162.48,162.4,6.12855614]
[1746757985645,29.08,162.48,162.43,6.12855614]
[1746757985848,29.08,162.48,162.43,35.20855614]
[1746757986255,35.2357,162.48,162.44,6.1569]
[1746757986752,35.2357,162.48,162.43,35.20855614]
[1746757986951,29.08,162.48,162.43,29.08]
[1746757987255,29.08,162.48,162.4,35.18855614]
[1746757987647,29.08,162.48,162.41,6.158]
[1746757988556,6.1569,162.45,162.41,6.158]
[1746757988749,29.08,162.48,162.4,6.12855614]
[1746757988955,58.14,162.48,162.36,5.8523]
[1746757989157,58.14,162.48,162.36,34.9123]
[1746757989457,6.158,162.42,162.37,6.1593]
[1746757989860,29.08,162.43,162.37,6.1593]
[1746757990358,6.1581,162.41,162.37,6.1593]
[1746757990656,29.08,162.43,162.36,3.9277]
[1746757991055,6.1589,162.39,162.36,3.9277]
[1746757991759,6.1589,162.39,162.34,37.18855614]
[1746757991760,6.1589,162.39,162.34,43.34925614]
[1746757991947,6.1593,162.38,162.34,43.34925614]
[1746757992254,29.08,162.43,162.34,8.12855614]
[1746757992454,6.1596,162.38,162.34,8.12855614]
[1746757992661,29.08,162.39,162.34,2.0]
[1746757993049,6.1604,162.36,162.34,2.0]
[1746757993549,6.1597,162.37,162.34,2.0]
[1746757993753,29.08,162.39,162.34,2.0]
[1746757994560,35.2389,162.39,162.34,2.0]
[1746757994961,6.1589,162.39,162.34,2.0]
[1746757995460,6.1589,162.39,162.35,6.1601]
[1746757995757,6.1589,162.39,162.34,8.12855614]
[1746757995758,29.08,162.4,162.34,8.12855614]
[1746757995961,29.08,162.4,162.34,37.18855614]
[1746757996164,1.23129963,162.43,162.37,6.12855614]
[1746757996363,1.23129963,162.43,162.4,6.1582]
[1746757997660,1.23129963,162.43,162.38,29.06]
[1746757997958,6.1552,162.49,162.4,6.12855614]
[1746757998162,6.1552,162.49,162.44,6.12855614]
[1746757998362,29.08,162.5,162.45,6.1565]
[1746757998753,35.235,162.5,162.45,6.1565]
[1746757998965,35.235,162.5,162.46,6.1562]
[1746757999157,29.08,162.5,162.46,6.1562]
[1746757999358,35.234,162.52,162.47,6.12855614]
[1746757999560,29.08,162.52,162.47,6.12855614]
[1746757999863,6.1547,162.5,162.43,1.9499]
[1746758000265,6.1547,162.5,162.45,6.1563]
[1746758000564,35.2342,162.52,162.43,1.9499]
[1746758000867,29.08,162.52,162.43,1.9499]
[1746758001261,29.08,162.52,162.44,29.08]
[1746758001472,29.08,162.52,162.46,9.8219093]
[1746758001963,29.08,162.52,162.47,35.1958]
[1746758002568,35.2343,162.52,162.47,35.1958]
[1746758002768,29.08,162.52,162.45,29.04]
[1746758003268,6.1548,162.5,162.45,35.1963]
[1746758003567,29.08,162.52,162.45,35.1963]
[1746758003769,29.08,162.52,162.45,29.04]
[1746758004066,29.08,162.52,162.43,1.9499]
[1746758004067,58.12,162.52,162.43,1.9499]
[1746758004370,58.12,162.52,162.42,31.0001]
[1746758004557,58.12,162.52,162.42,37.1577]
[1746758005166,6.1558,162.48,162.43,6.1572]
[1746758005866,6.1558,162.48,162.44,6.1569]
[1746758006069,531.8,162.53,162.42,31.0001]
[1746758006263,29.08,162.52,162.42,31.0001]
[1746758007262,35.2342,162.52,162.47,6.1556]
[1746758007573,29.08,162.52,162.42,31.0001]
[1746758008869,6.1554,162.49,162.44,6.1569]
[1746758009065,29.08,162.52,162.42,31.0001]
[1746758009466,6.1557,162.48,162.43,6.1573]
[1746758009766,29.08,162.52,162.43,6.1573]
[1746758009972,29.08,162.52,162.42,1.9601]
[1746758010165,6.1569,162.45,162.4,35.1781]
[1746758010871,6.1571,162.44,162.4,6.1581]
[1746758011069,29.02,162.46,162.39,6.1588]
[1746758011769,6.157,162.44,162.39,6.1588]
[1746758013373,6.1574,162.43,162.39,6.1588]
[1746758014071,6.1567,162.45,162.4,6.1582]
[1746758015075,6.1567,162.45,162.41,6.1581]
[1746758016169,888.88706,162.53,162.38,33.0167]
[1746758016374,58.04,162.52,162.4,9.8219093]
[1746758016874,58.04,162.52,162.41,29.02]
[1746758017374,6.1546,162.51,162.46,6.1559]
[1746758017964,6.1546,162.51,162.47,6.1558]
[1746758018372,35.174,162.52,162.48,6.1552]
[1746758018674,29.02,162.52,162.46,3.9982]
[1746758018870,29.02,162.52,162.45,29.02]
[1746758019070,29.02,162.52,162.42,29.02]
[1746758019573,29.02,162.52,162.42,35.1776]
[1746758020070,29.3277,162.52,162.42,35.1776]
[1746758020275,6.1563,162.46,162.42,29.02]
[1746758020865,6.1563,162.46,162.42,35.1777]
[1746758021075,6.1559,162.47,162.42,29.02]
[1746758021274,29.02,162.48,162.42,29.02]
[1746758022370,6.1565,162.46,162.41,10.1562]
[1746758022877,6.1567,162.45,162.41,10.1562]
[1746758025376,6.1567,162.45,162.41,3.9982]
[1746758025577,6.157,162.44,162.41,3.9982]
[1746758026678,6.1567,162.45,162.41,10.1563]
[1746758026869,29.02,162.48,162.41,3.9982]
[1746758027176,0.3077,162.52,162.42,6.1577]
[1746758027375,58.02,162.51,162.42,6.1577]
[1746758027678,58.02,162.51,162.41,3.9982]
[1746758027874,6.1567,162.45,162.41,10.1563]
[1746758028879,6.1563,162.46,162.42,6.1577]
[1746758029081,29.02,162.47,162.41,3.9982]
[1746758030878,29.02,162.47,162.38,29.02]
[1746758031181,6.1577,162.43,162.41,1.0]
[1746758033081,6.1571,162.44,162.41,1.0]
[1746758033981,58.02,162.47,162.41,7.1581]
[1746758034884,6.157,162.44,162.41,1.0]
[1746758035279,58.02,162.47,162.41,1.0]
[1746758035587,6.1578,162.42,162.41,1.0]
[1746758035977,58.02,162.47,162.41,1.0]
[1746758036485,6.1576,162.43,162.41,1.0]
[1746758041187,6.1578,162.42,162.41,1.0]
[1746758042985,6.159,162.39,162.34,2.0]
[1746758043190,6.159,162.39,162.35,28.98]
[1746758044094,6.1593,162.38,162.35,28.98]
[1746758044591,28.96,162.42,162.34,30.98]
[1746758044790,6.1592,162.39,162.34,30.98]
[1746758044988,6.1592,162.39,162.35,6.1604]
[1746758045693,28.96,162.42,162.34,2.0]
[1746758046599,6.16,162.37,162.34,2.0]
[1746758047005,28.96,162.38,162.34,2.0]
[1746758047399,35.1195,162.38,162.34,2.0]
[1746758047598,28.96,162.38,162.34,2.0]
[1746758047999,35.1388,162.4,162.35,6.1603]
[1746758048199,28.98,162.4,162.34,2.0]
[1746758049898,6.1599,162.37,162.34,2.0]
[1746758050399,6.16,162.36,162.34,2.0]
[1746758050702,28.98,162.4,162.34,2.0]
[1746758053197,6.1604,162.35,162.34,2.0]
[1746758053397,28.98,162.4,162.34,2.0]